fUSD/lending_fUSD_20240212
["ID","MTS","AMOUNT","RATE_DAILY","PERIOD"]
[313839707,1707748339599,-2640.73383519,0.00037652,10]
[313839708,1707748339609,-2640.73383519,0.00037652,10]
[313839709,1707748339618,-2640.73383519,0.00037652,10]
[313839710,1707748339628,-315.98,0.0003766,2]
[313839711,1707748339637,-500.0,0.00037671,14]
[313839712,1707748339647,-152.95711081,0.00037684,2]
[313839713,1707748339657,-2435.0,0.00037694,2]
[313839714,1707748339668,-2435.0,0.00037694,2]
[313839715,1707748339677,-2435.0,0.00037694,2]
[313839716,1707748339687,-2435.0,0.00037694,2]
[313839717,1707748339697,-48267.05401489,0.00037699,2]
[313839718,1707748339707,-309.0,0.000377,30]
[313839719,1707748339716,-200.0,0.000377,11]
[313839720,1707748339725,-500.0,0.00037779,2]
[313839721,1707748339735,-6447765.51023744,0.00037784,2]
[313839722,1707748339745,-148564.42748431,0.00037784,4]
[313839723,1707748339754,-1000.0,0.000378,37]
[313839724,1707748339763,-1000.0,0.00037808,19]
[313839725,1707748339772,-150.0,0.00037892,2]
[313839726,1707748339782,-309.0,0.000379,30]
[313839727,1707748339791,-23124.28074751,0.000379,2]
[313839728,1707748339800,-150.492989,0.000379,2]
[313839729,1707748339809,-863.0,0.000379,13]
[313839730,1707748339819,-358863.99541255,0.000379,2]
[313839731,1707748340592,-355.27205243,0.00022847,2]
[313839732,1707748340605,-144.72794757,0.00022847,2]
[313839733,1707748340615,-500.0,0.00022847,2]
[313839734,1707748340625,-188.7077744,0.00023121,2]
[313839735,1707748340635,-500.0,0.00023842,2]
[313839736,1707748340645,-500.0,0.00024116,2]
[313839737,1707748340655,-500.0,0.0002439,2]
[313839738,1707748340664,-500.0,0.00024664,2]
[313839739,1707748340674,-500.0,0.00024938,2]
[313839740,1707748340684,-590.49777586,0.00025212,2]
[313839741,1707748340694,-1140.72,0.00025861,2]
[313839742,1707748340703,-1140.72,0.00026135,2]
[313839743,1707748340713,-562.21,0.00026136,2]
[313839744,1707748340723,-1140.72,0.00026409,2]
[313839745,1707748340733,-562.21,0.0002641,2]
[313839746,1707748340743,-1140.72,0.00026683,2]
[313839747,1707748340752,-562.21,0.00026684,2]
[313839748,1707748340762,-1140.72,0.00026956,2]
[313839749,1707748340771,-562.21,0.00026958,2]
[313839750,1707748340781,-562.21,0.00027232,2]
[313839751,1707748340790,-562.21,0.00027506,2]
[313839752,1707748340799,-828.89,0.00027967,2]
[313839753,1707748340808,-828.89,0.00028241,2]
[313839754,1707748340819,-2525.28,0.00028324,2]
[313839755,1707748340829,-502.26,0.00028326,2]
[313839756,1707748340838,-828.89,0.00028515,2]
[313839757,1707748340848,-2525.28,0.00028598,2]
[313839758,1707748340858,-502.26,0.000286,2]
[313839759,1707748340867,-828.89,0.00028789,2]
[313839760,1707748340877,-2525.28,0.00028872,2]
[313839761,1707748340886,-502.26,0.00028874,2]
[313839762,1707748340896,-828.98047561,0.00029063,2]
[313839763,1707748340905,-2525.51634068,0.00029146,2]
[313839764,1707748340915,-502.37071784,0.00029148,2]
[313839765,1707748340926,-221385.70346874,0.000379,2]
[313839766,1707748340959,-500.0,0.00023121,2]
[313839767,1707748340970,-1140.72,0.0002723,2]
[313839768,1707748340981,-15240.34,0.000379,2]
[313839769,1707748341007,-500.0,0.00022746,2]
[313839770,1707748341018,-562.21,0.0002778,2]
[313839771,1707748341028,-31756.05183071,0.000379,2]
[313839772,1707748341037,-500.0,0.00037924,2]
[313839773,1707748341046,-50000.0,0.00037961,15]
[313839774,1707748341056,-50000.0,0.00037961,15]
[313839775,1707748341068,-200.0,0.00037987,3]
[313839776,1707748341077,-50000.0,0.00038,8]
[313839777,1707748341086,-5054.65554316,0.00038,7]
[313839778,1707748341096,-40009.28996251,0.00038,7]
[313839779,1707748341105,-500.0,0.00038,2]
[313839780,1707748341114,-3542.6127472,0.00038,5]
[313839781,1707748341124,-312.615,0.00038,5]
[313839782,1707748341133,-5000.0,0.00038,3]
[313839783,1707748341142,-5000.0,0.00038,7]
[313839784,1707748341152,-10000.0,0.00038,7]
[313839785,1707748341161,-77703.56,0.00038,14]
[313839786,1707748341171,-70000.0,0.00038,14]
[313839787,1707748341181,-70000.0,0.00038,11]
[313839788,1707748341189,-4974.53413545,0.00038,4]
[313839789,1707748341199,-30000.0,0.00038,7]
[313839790,1707748341208,-12587.0,0.00038,2]
[313839791,1707748341217,-197166.89225183,0.00038,2]
[313839792,1707748341226,-459171.72720266,0.00038,2]
[313839793,1707748341569,-298.281,0.00022746,2]
[313839794,1707748341579,-183.829,0.00022844,2]
[313839795,1707748348015,427.72,0.00022034,2]
[313839796,1707748352365,238.85,0.0002203,2]
[313839817,1707748367442,209.81,0.00021987,2]
[313839823,1707748387526,1000.0,0.00021991,2]
[313839840,1707748472783,200.0,0.00021985,2]
[313839844,1707748488418,250.0,0.00021986,2]
[313839851,1707748522928,163.94,0.00022117,2]
[313839854,1707748582065,250.0,0.00021922,2]
[313839855,1707748649318,186.12,0.00021764,10]
[313839856,1707748677286,157.71,0.00019858,2]
[313839857,1707748780133,282.19441718,0.000222,2]
[313839859,1707748872581,200.0,0.00021765,2]
[313839861,1707748882585,207.78,0.00021779,2]
[313839863,1707748924227,206.0,0.00021531,2]
[313839865,1707748956400,200.0,0.0002179,2]
[313839867,1707748965646,250.0,0.00021918,2]
[313839868,1707748986045,163.12,0.00021971,2]
[313839869,1707748986249,163.12,0.00022134,2]
[313839870,1707748986499,163.12,0.00022298,2]
[313839871,1707749017877,158.69405491,0.00022297,2]
[313839872,1707749022809,158.6940548,0.00022347,2]
[313839873,1707749039024,548.36818583,0.00022296,2]
[313839874,1707749091069,186.12,0.00021677,10]
[313839875,1707749124559,216.25448592,0.0002239,2]
[313839876,1707749147555,155.51,0.00019761,2]
[313839877,1707749164303,7825.94599968,0.0002239,2]
[313839882,1707749223079,250.0,0.00021656,2]
[313839883,1707749229259,1862.12656085,0.0002239,2]
[313839884,1707749240370,155.0,0.0002239,2]
[313839886,1707749244324,4139.60413305,0.0002239,2]
[313839894,1707749338116,173.15,0.00021587,2]
[313839897,1707749354912,10553.48847873,0.00022389,2]
[313839898,1707749359969,1911.90542998,0.00022389,2]
[313839900,1707749368340,155.0,0.00022389,2]
[313839901,1707749371389,155.0,0.00022389,2]
[313839902,1707749372513,2605.5728343,0.00022389,2]
[313839910,1707749375325,7825.94599968,0.00022389,2]
[313839911,1707749375808,363.59759485,0.00022389,2]
[313839912,1707749378283,155.0,0.00022389,2]
[313839913,1707749382247,1046.94308784,0.00022389,2]
[313839914,1707749383615,526.60659189,0.00022389,2]
[313839915,1707749388447,585.33944638,0.00022389,2]
[313839916,1707749388769,181.56713177,0.00022389,2]
[313839917,1707749389079,1226.77842006,0.00022389,2]
[313839918,1707749390239,155.0,0.00022389,2]
[313839919,1707749393592,840.0,0.00021593,2]
[313839956,1707749434727,-155.0,0.00022395,2]
[313839957,1707749434737,-155.0,0.00022396,2]
[313839958,1707749434749,-1911.90542998,0.00022402,2]
[313839959,1707749434758,-1957.34969805,0.00022403,2]
[313839960,1707749434768,-12521.81,0.00022404,2]
[313839961,1707749434778,-368.2443,0.00022443,2]
[313839962,1707749434788,-155.51,0.00022449,2]
[313839963,1707749434797,-8098.16,0.00022461,2]
[313839964,1707749434807,-130041.10966952,0.00022518,2]
[313839965,1707749434817,-315.23652544,0.00022519,2]
[313839966,1707749434826,-4965.74,0.00022519,2]
[313839967,1707749434836,-1680.69,0.00022519,2]
[313839968,1707749434845,-495.31126188,0.00022534,2]
[313839969,1707749434855,-276.52257299,0.00022538,2]
[313839970,1707749434865,-477.5432853,0.00022538,2]
[313839971,1707749434874,-156.45829157,0.00022538,2]
[313839972,1707749434884,-2155.1329147,0.00022538,2]
[313839973,1707749434893,-174.99421299,0.00022538,2]
[313839974,1707749434903,-155.76435708,0.00022538,2]
[313839975,1707749434913,-3357.03576588,0.00022538,2]
[313839976,1707749434923,-2842.74771214,0.00022538,2]
[313839977,1707749434933,-158.33427305,0.00022538,2]
[313839978,1707749434943,-1213.5544367,0.00022538,2]
[313839979,1707749434953,-157.78016296,0.00022538,2]
[313839980,1707749434963,-214.70806668,0.00022538,2]
[313839981,1707749434973,-2605.62369976,0.00022538,2]
[313839982,1707749434983,-345.20392985,0.00022538,2]
[313839983,1707749434993,-933.14474196,0.00022538,2]
[313839984,1707749435003,-532.26134971,0.00022538,2]
[313839985,1707749435014,-261.02653935,0.00022538,2]
[313839986,1707749435024,-187.38739799,0.00022538,2]
[313839987,1707749435035,-298.28913533,0.00022538,2]
[313839988,1707749435046,-285.04321514,0.00022538,2]
[313839989,1707749435057,-155.52570026,0.00022539,2]
[313839990,1707749435068,-432.58557822,0.00022539,2]
[313839992,1707749435079,-1235.97647154,0.00022539,2]
[313839995,1707749435090,-207828.93745971,0.0002254,2]
[313839998,1707749435104,-24331.00000001,0.0002254,2]
[313840006,1707749435138,-367.52434221,0.0002254,2]
[313840010,1707749435152,-5264.93016729,0.0002254,2]
[313840012,1707749435165,-4038.56433042,0.0002254,2]
[313840016,1707749435178,-42486.92489843,0.0002254,2]
[313840020,1707749435196,-6104.97203651,0.0002254,2]
[313840023,1707749435209,-43795.32496724,0.0002254,2]
[313840026,1707749435221,-4628.66338929,0.0002254,2]
[313840029,1707749435230,-1230.05731595,0.00022541,2]
[313840031,1707749435240,-203.39158238,0.00022541,2]
[313840033,1707749435252,-201.31214824,0.00022541,2]
[313840035,1707749435262,-155.0,0.00022541,2]
[313840037,1707749435272,-504.03645429,0.00022541,2]
[313840040,1707749435282,-260.58052071,0.00022541,2]
[313840041,1707749435292,-1718.31714458,0.00022541,2]
[313840044,1707749435302,-178.72127769,0.00022541,2]
[313840045,1707749435312,-4332.81581424,0.00022541,2]
[313840048,1707749435322,-156.260284,0.00022541,2]
[313840050,1707749435332,-413.3917858,0.00022541,2]
[313840052,1707749435342,-1180.65689555,0.00022541,2]
[313840054,1707749435353,-6472.10183752,0.00022541,2]
[313840056,1707749435363,-234.53774303,0.00022541,2]
[313840058,1707749435373,-3920.46182098,0.00022541,2]
[313840060,1707749435383,-1050.85386154,0.00022541,2]
[313840062,1707749435393,-157.07734709,0.00022541,2]
[313840064,1707749435403,-248.08555624,0.00022541,2]
[313840066,1707749435413,-203.31012739,0.00022541,2]
[313840068,1707749435422,-289.8795039,0.00022541,2]
[313840070,1707749435432,-288.10515116,0.00022541,2]
[313840072,1707749435442,-3148.06260981,0.00022541,2]
[313840074,1707749435452,-200.59320511,0.00022541,2]
[313840076,1707749435462,-547.4004666,0.00022541,2]
[313840078,1707749435472,-167.8231689,0.00022541,2]
[313840080,1707749435481,-157.3764,0.00022541,2]
[313840082,1707749435491,-164.19690491,0.00022541,2]
[313840084,1707749435503,-559.56904296,0.00022541,2]
[313840086,1707749435512,-475.19845048,0.00022541,2]
[313840088,1707749435521,-313.53004214,0.00022541,2]
[313840090,1707749435531,-256.25912178,0.00022541,2]
[313840092,1707749435540,-525.57255561,0.00022541,2]
[313840094,1707749435550,-228.48089945,0.00022541,2]
[313840096,1707749435559,-738.29623454,0.00022541,2]
[313840098,1707749435569,-339.71755257,0.00022541,2]
[313840100,1707749435578,-159.36632658,0.00022541,2]
[313840102,1707749435587,-286.79931458,0.00022541,2]
[313840104,1707749435597,-336.29920953,0.00022541,2]
[313840106,1707749435607,-8733.75664874,0.00022541,2]
[313840108,1707749435616,-197.1837572,0.00022541,2]
[313840110,1707749435626,-472.31185992,0.00022541,2]
[313840112,1707749435636,-1126.01644152,0.00022541,2]
[313840114,1707749435648,-212.96188479,0.00022541,2]
[313840116,1707749435658,-556.6011609,0.00022541,2]
[313840118,1707749435667,-486.25881961,0.00022541,2]
[313840122,1707749435689,-295.7849873,0.00022541,2]
[313840124,1707749435702,-534.31790056,0.00022541,2]
[313840126,1707749435712,-404.5107215,0.00022541,2]
[313840128,1707749435725,-289.59209792,0.00022541,2]
[313840130,1707749435735,-634.88731884,0.00022541,2]
[313840132,1707749435747,-226.68884736,0.00022541,2]
[313840134,1707749435757,-216.18296811,0.00022542,2]
[313840136,1707749435768,-157.34448278,0.00022542,2]
[313840138,1707749435778,-172.24605798,0.00022542,2]
[313840140,1707749435788,-195.67489377,0.00022542,2]
[313840142,1707749435799,-258.39023762,0.00022542,2]
[313840144,1707749435808,-358.62920343,0.00022542,2]
[313840146,1707749435818,-172.44020422,0.00022542,2]
[313840148,1707749435827,-163.71547153,0.00022542,2]
[313840150,1707749435838,-161.29335573,0.00022542,2]
[313840152,1707749435847,-183.17618176,0.00022542,2]
[313840154,1707749435857,-269.54504552,0.00022542,2]
[313840156,1707749435867,-435.58098454,0.00022542,2]
[313840158,1707749435878,-156.81931858,0.00022542,2]
[313840160,1707749435889,-288.01753648,0.00022542,2]
[313840162,1707749435899,-156.47860661,0.00022542,2]
[313840164,1707749435909,-207.10060968,0.00022542,2]
[313840166,1707749435920,-462.16379328,0.00022542,2]
[313840168,1707749435929,-843.0,0.00022542,2]
[313840170,1707749435940,-155.0,0.00022542,2]
[313840172,1707749435950,-356.8393713,0.00022542,2]
[313840174,1707749435960,-768.8565787,0.00022542,2]
[313840176,1707749435970,-155.0,0.00022542,2]
[313840178,1707749435980,-306.23581506,0.00022542,2]
[313840180,1707749435990,-750.40272192,0.00022542,2]
[313840182,1707749436002,-208.07992085,0.00022542,2]
[313840184,1707749436012,-534.13363385,0.00022542,2]
[313840186,1707749436022,-262.676225,0.00022542,2]
[313840188,1707749436031,-304.8999602,0.00022542,2]
[313840190,1707749436041,-2305.02815688,0.00022542,2]
[313840192,1707749436051,-697.32652648,0.00022542,2]
[313840194,1707749436060,-383.19062487,0.00022543,2]
[313840198,1707749436087,-187.09969031,0.00022543,2]
[313840200,1707749436097,-2500.0,0.00022543,2]
[313840202,1707749436107,-775.13806544,0.00022543,2]
[313840204,1707749436117,-499.99,0.00022543,2]
[313840206,1707749436126,-309.27,0.00022543,2]
[313840208,1707749436135,-2218.5,0.00022543,2]
[313840210,1707749436144,-1000.0,0.00022544,2]
[313840212,1707749436154,-25269.60843791,0.00022544,2]
[313840214,1707749436167,-3036.304,0.00022544,2]
[313840217,1707749436191,-19905.30226209,0.00022544,2]
[313840218,1707749436201,-156.41722783,0.00022547,2]
[313840219,1707749436211,-588.91069942,0.00022547,2]
[313840220,1707749436221,-156.52695761,0.00022547,2]
[313840221,1707749436231,-500.0,0.00022599,2]
[313840222,1707749436240,-639.53,0.00022599,2]
[313840223,1707749436251,-500.0,0.00022599,2]
[313840224,1707749436262,-500.0,0.00022599,2]
[313840225,1707749436271,-500.0,0.00022599,2]
[313840226,1707749436281,-500.0,0.00022599,2]
[313840227,1707749436290,-920.58,0.00022599,2]
[313840228,1707749436300,-500.0,0.00022599,2]
[313840229,1707749436311,-500.0,0.00022599,2]
[313840230,1707749436321,-500.0,0.00022599,2]
[313840231,1707749436331,-900.15,0.00022599,2]
[313840232,1707749436645,-500.0,0.00022599,2]
[313840233,1707749436654,-500.0,0.00022599,2]
[313840234,1707749436664,-500.0,0.00022599,2]
[313840235,1707749436675,-1461.09,0.00022599,2]
[313840236,1707749436684,-500.0,0.00022599,2]
[313840237,1707749436694,-500.0,0.00022599,2]
[313840238,1707749436703,-155.0,0.00022599,2]
[313840239,1707749436713,-500.0,0.00022599,2]
[313840240,1707749436722,-587.81,0.00022599,2]
[313840241,1707749436733,-500.0,0.00022599,2]
[313840242,1707749436742,-500.0,0.00022599,2]
[313840243,1707749436753,-500.0,0.00022599,2]
[313840244,1707749436763,-500.0,0.00022599,2]
[313840245,1707749436772,-500.0,0.00022599,2]
[313840246,1707749436782,-500.0,0.00022599,2]
[313840247,1707749436792,-208.14434795,0.00022599,2]
[313840248,1707749436801,-18816.65795057,0.000226,2]
[313840249,1707749436815,-427.44427227,0.000226,2]
[313840250,1707749436824,-588.91069938,0.0002261,2]
[313840251,1707749436834,-156.5269576,0.00022624,2]
[313840252,1707749436844,-570.29031516,0.00022634,2]
[313840253,1707749436854,-247.7810344,0.00022641,2]
[313840254,1707749436863,-239.91376314,0.00022642,2]
[313840255,1707749436873,-157.00235158,0.00022642,2]
[313840256,1707749436882,-157.10284688,0.00022642,2]
[313840257,1707749436892,-247.14084515,0.00022642,2]
[313840258,1707749436901,-266.43779097,0.00022642,2]
[313840259,1707749436911,-296.80662458,0.00022642,2]
[313840260,1707749436921,-180.26483187,0.00022642,2]
[313840261,1707749436930,-949.04937961,0.00022642,2]
[313840262,1707749436940,-221.72347745,0.00022642,2]
[313840263,1707749436950,-155.0,0.00022642,2]
[313840264,1707749436960,-500.0,0.00022643,2]
[313840265,1707749436970,-500.0,0.00022643,2]
[313840266,1707749436980,-519.96512816,0.00022643,2]
[313840267,1707749436990,-500.0,0.00022643,2]
[313840268,1707749437001,-500.0,0.00022643,2]
[313840269,1707749437010,-500.0,0.00022643,2]
[313840270,1707749437019,-500.0,0.00022643,2]
[313840271,1707749437030,-500.0,0.00022643,2]
[313840272,1707749437040,-500.0,0.00022643,2]
[313840273,1707749437050,-500.0,0.00022643,2]
[313840274,1707749437060,-500.0,0.00022643,2]
[313840275,1707749437069,-500.0,0.00022643,2]
[313840276,1707749437079,-500.0,0.00022643,2]
[313840277,1707749437088,-500.0,0.00022643,2]
[313840278,1707749437098,-500.0,0.00022643,2]
[313840279,1707749437108,-500.0,0.00022643,2]
[313840280,1707749437118,-500.0,0.00022643,2]
[313840281,1707749437127,-533.15,0.00022643,2]
[313840282,1707749437137,-500.0,0.00022643,2]
[313840283,1707749437146,-500.0,0.00022643,2]
[313840284,1707749437156,-500.0,0.00022643,2]
[313840285,1707749437165,-500.0,0.00022643,2]
[313840286,1707749437175,-500.0,0.00022643,2]
[313840287,1707749437184,-500.0,0.00022643,2]
[313840288,1707749437194,-500.0,0.00022643,2]
[313840289,1707749437203,-500.0,0.00022643,2]
[313840290,1707749437213,-500.0,0.00022643,2]
[313840291,1707749437222,-500.0,0.00022643,2]
[313840292,1707749437232,-500.0,0.00022643,2]
[313840293,1707749437241,-500.0,0.00022643,2]
[313840294,1707749437253,-500.0,0.00022643,2]
[313840295,1707749437263,-500.0,0.00022643,2]
[313840296,1707749437272,-500.0,0.00022643,2]
[313840297,1707749437282,-500.0,0.00022643,2]
[313840298,1707749437292,-500.0,0.00022643,2]
[313840299,1707749437301,-500.0,0.00022643,2]
[313840300,1707749437310,-500.0,0.00022643,2]
[313840301,1707749437320,-500.0,0.00022643,2]
[313840302,1707749437329,-500.0,0.00022643,2]
[313840303,1707749437338,-500.0,0.00022643,2]
[313840304,1707749437348,-500.0,0.00022643,2]
[313840305,1707749437357,-500.0,0.00022643,2]
[313840306,1707749437366,-500.0,0.00022643,2]
[313840307,1707749437375,-500.0,0.00022643,2]
[313840308,1707749437384,-500.0,0.00022643,2]
[313840309,1707749437394,-500.0,0.00022643,2]
[313840310,1707749437403,-500.0,0.00022643,2]
[313840311,1707749437412,-500.0,0.00022643,2]
[313840312,1707749437421,-500.0,0.00022643,2]
[313840313,1707749437431,-500.0,0.00022643,2]
[313840314,1707749437441,-500.0,0.00022643,2]
[313840315,1707749437450,-506.08824678,0.00022643,2]
[313840316,1707749437459,-513.74513085,0.00022643,2]
[313840317,1707749437469,-500.0,0.00022643,2]
[313840318,1707749437478,-500.0,0.00022643,2]
[313840319,1707749437487,-500.0,0.00022643,2]
[313840320,1707749437498,-500.0,0.00022643,2]
[313840321,1707749437508,-500.0,0.00022643,2]
[313840322,1707749437517,-500.0,0.00022643,2]
[313840323,1707749437526,-500.0,0.00022643,2]
[313840324,1707749437536,-500.0,0.00022643,2]
[313840325,1707749437545,-500.0,0.00022643,2]
[313840326,1707749437554,-400.86859948,0.00022643,2]
[313840327,1707749437564,-500.0,0.00022643,2]
[313840328,1707749437574,-500.0,0.00022643,2]
[313840329,1707749437584,-500.0,0.00022643,2]
[313840330,1707749437595,-381.84272449,0.00022643,2]
[313840331,1707749437605,-500.0,0.00022643,2]
[313840332,1707749437614,-500.0,0.00022643,2]
[313840333,1707749437625,-500.0,0.00022643,2]
[313840334,1707749437635,-500.0,0.00022643,2]
[313840335,1707749437647,-499.90959833,0.00022643,2]
[313840336,1707749437657,-500.0,0.00022643,2]
[313840337,1707749437666,-500.0,0.00022643,2]
[313840338,1707749437676,-500.0,0.00022643,2]
[313840339,1707749437686,-500.0,0.00022643,2]
[313840340,1707749437695,-500.0,0.00022643,2]
[313840341,1707749437706,-500.0,0.00022643,2]
[313840342,1707749437717,-500.0,0.00022643,2]
[313840343,1707749437727,-500.0,0.00022643,2]
[313840344,1707749437737,-500.0,0.00022643,2]
[313840345,1707749437749,-511.46170133,0.00022643,2]
[313840346,1707749437759,-500.0,0.00022643,2]
[313840347,1707749437768,-500.0,0.00022643,2]
[313840348,1707749437778,-500.0,0.00022643,2]
[313840349,1707749437787,-500.0,0.00022643,2]
[313840350,1707749437797,-500.0,0.00022643,2]
[313840351,1707749437807,-500.0,0.00022643,2]
[313840352,1707749437817,-500.0,0.00022643,2]
[313840353,1707749437827,-500.0,0.00022643,2]
[313840354,1707749437837,-500.0,0.00022643,2]
[313840355,1707749437847,-509.71617826,0.00022643,2]
[313840356,1707749437856,-189.10399249,0.00022643,2]
[313840357,1707749437867,-500.0,0.00022643,2]
[313840358,1707749437877,-500.0,0.00022643,2]
[313840359,1707749437887,-500.0,0.00022643,2]
[313840360,1707749437896,-500.0,0.00022643,2]
[313840361,1707749437906,-500.0,0.00022643,2]
[313840362,1707749437915,-500.0,0.00022643,2]
[313840363,1707749437925,-500.0,0.00022643,2]
[313840364,1707749437935,-500.0,0.00022643,2]
[313840365,1707749437944,-500.0,0.00022643,2]
[313840366,1707749437953,-500.0,0.00022643,2]
[313840367,1707749437963,-512.62691882,0.00022643,2]
[313840368,1707749437972,-795.58,0.00022643,2]
[313840369,1707749437982,-500.0,0.00022643,2]
[313840370,1707749437991,-500.0,0.00022643,2]
[313840371,1707749438002,-500.0,0.00022643,2]
[313840372,1707749438012,-500.0,0.00022643,2]
[313840374,1707749438021,-500.0,0.00022643,2]
[313840376,1707749438030,-500.0,0.00022643,2]
[313840378,1707749438039,-500.0,0.00022643,2]
[313840379,1707749438049,-521.93768246,0.00022643,2]
[313840380,1707749438060,-500.0,0.00022643,2]
[313840381,1707749438069,-500.0,0.00022643,2]
[313840383,1707749438079,-7766.59,0.00022643,2]
[313840384,1707749438088,-500.0,0.00022643,2]
[313840386,1707749438098,-500.0,0.00022643,2]
[313840387,1707749438108,-500.0,0.00022643,2]
[313840388,1707749438118,-500.0,0.00022643,2]
[313840389,1707749438127,-500.0,0.00022643,2]
[313840390,1707749438136,-500.0,0.00022643,2]
[313840391,1707749438145,-500.0,0.00022643,2]
[313840392,1707749438154,-500.0,0.00022643,2]
[313840393,1707749438163,-613.94,0.00022643,2]
[313840394,1707749438174,-500.0,0.00022643,2]
[313840395,1707749438182,-500.0,0.00022643,2]
[313840396,1707749438192,-500.0,0.00022643,2]
[313840397,1707749438202,-500.0,0.00022643,2]
[313840398,1707749438211,-500.0,0.00022643,2]
[313840399,1707749438221,-531.44702969,0.00022643,2]
[313840400,1707749438231,-500.0,0.00022643,2]
[313840401,1707749438240,-500.0,0.00022643,2]
[313840402,1707749438251,-500.0,0.00022643,2]
[313840403,1707749438261,-500.0,0.00022643,2]
[313840404,1707749438271,-500.0,0.00022643,2]
[313840405,1707749438281,-500.0,0.00022643,2]
[313840406,1707749438290,-500.0,0.00022643,2]
[313840407,1707749438299,-500.0,0.00022643,2]
[313840408,1707749438309,-500.0,0.00022643,2]
[313840409,1707749438318,-500.0,0.00022643,2]
[313840410,1707749438327,-500.0,0.00022643,2]
[313840411,1707749438337,-500.0,0.00022643,2]
[313840412,1707749438347,-500.0,0.00022643,2]
[313840413,1707749438357,-500.0,0.00022643,2]
[313840414,1707749438366,-500.0,0.00022643,2]
[313840415,1707749438376,-500.0,0.00022643,2]
[313840416,1707749438385,-500.0,0.00022643,2]
[313840417,1707749438395,-500.0,0.00022643,2]
[313840418,1707749438403,-500.0,0.00022643,2]
[313840419,1707749438412,-500.0,0.00022643,2]
[313840420,1707749438422,-500.0,0.00022643,2]
[313840421,1707749438432,-500.0,0.00022643,2]
[313840422,1707749438442,-500.0,0.00022643,2]
[313840423,1707749438452,-500.0,0.00022643,2]
[313840424,1707749438461,-500.0,0.00022643,2]
[313840425,1707749438470,-500.0,0.00022643,2]
[313840426,1707749438480,-500.0,0.00022643,2]
[313840427,1707749438490,-500.0,0.00022643,2]
[313840428,1707749438501,-500.0,0.00022643,2]
[313840429,1707749438510,-521.69,0.00022643,2]
[313840430,1707749438520,-500.0,0.00022643,2]
[313840431,1707749438529,-500.0,0.00022643,2]
[313840432,1707749438539,-500.0,0.00022643,2]
[313840433,1707749438549,-500.0,0.00022643,2]
[313840434,1707749438559,-3859.6,0.00022643,2]
[313840435,1707749438569,-500.0,0.00022643,2]
[313840436,1707749438579,-500.0,0.00022643,2]
[313840437,1707749438589,-500.0,0.00022643,2]
[313840438,1707749438598,-500.0,0.00022643,2]
[313840439,1707749438608,-3196.37,0.00022643,2]
[313840440,1707749438617,-500.0,0.00022643,2]
[313840441,1707749438627,-500.0,0.00022643,2]
[313840442,1707749438637,-500.0,0.00022643,2]
[313840443,1707749438648,-500.0,0.00022643,2]
[313840444,1707749438658,-500.0,0.00022643,2]
[313840445,1707749438667,-500.0,0.00022643,2]
[313840446,1707749438677,-500.0,0.00022643,2]
[313840447,1707749438687,-555.97,0.00022643,2]
[313840448,1707749438696,-500.0,0.00022643,2]
[313840449,1707749438706,-500.0,0.00022643,2]
[313840450,1707749438716,-500.0,0.00022643,2]
[313840451,1707749438726,-500.0,0.00022643,2]